[Event "Titled Tuesday Blitz November 15 Early 2022"]
[White "Kirillov, Dmitry"]
[Black "Skliarov, Viktor"]
[WhiteFideId "34180572"]
[BlackFideId "14106736"]
[WhiteElo "2095"]
[BlackElo "2284"]
[Result "1-0"]
[Round "07"]
[TimeControl "180+1"]
[Date "2022.11.16"]
[WhiteClock "0:00:18"]
[BlackClock "0:00:04"]

1. e4 {[%clk 0:03:00]}  c5 {[%clk 0:02:59]} 2. Nc3 {[%clk 0:03:00]}  Nc6 {[%clk 0:02:59]} 3. f4 {[%clk 0:03:00]}  g6 {[%clk 0:02:59]} 4. Nf3 {[%clk 0:02:59]}  Bg7 {[%clk 0:03:00]} 5. Bc4 {[%clk 0:02:59]}  e6 {[%clk 0:02:59]} 6. e5 {[%clk 0:02:58]}  d5 {[%clk 0:02:52]} 7. exd6 {[%clk 0:02:59]}  Qxd6 {[%clk 0:02:50]} 8. Ne4 {[%clk 0:02:58]}  Qe7 {[%clk 0:02:43]} 9. d3 {[%clk 0:02:56]}  Nf6 {[%clk 0:02:40]} 10. O-O {[%clk 0:02:56]}  O-O {[%clk 0:02:36]} 11. Qe2 {[%clk 0:02:56]}  Na5 {[%clk 0:02:30]} 12. Bb3 {[%clk 0:02:34]}  Nxe4 {[%clk 0:02:22]} 13. Qxe4 {[%clk 0:02:23]}  Bd7 {[%clk 0:02:14]} 14. Ne5 {[%clk 0:02:21]}  Be8 {[%clk 0:01:57]} 15. Be3 {[%clk 0:02:16]}  Nxb3 {[%clk 0:01:45]} 16. axb3 {[%clk 0:02:14]}  f6 {[%clk 0:01:46]} 17. Nf3 {[%clk 0:02:11]}  Bc6 {[%clk 0:01:45]} 18. Qc4 {[%clk 0:02:10]}  b6 {[%clk 0:01:44]} 19. d4 {[%clk 0:02:07]}  Bd5 {[%clk 0:01:29]} 20. Qe2 {[%clk 0:02:07]}  cxd4 {[%clk 0:01:13]} 21. Nxd4 {[%clk 0:02:06]}  f5 {[%clk 0:01:02]} 22. c3 {[%clk 0:01:39]}  e5 {[%clk 0:00:48]} 23. fxe5 {[%clk 0:01:36]}  Qxe5 {[%clk 0:00:48]} 24. Qf2 {[%clk 0:01:34]}  Qf6 {[%clk 0:00:31]} 25. h4 {[%clk 0:01:27]}  Rfe8 {[%clk 0:00:29]} 26. Bg5 {[%clk 0:01:06]}  Qf7 {[%clk 0:00:26]} 27. Rfe1 {[%clk 0:01:05]}  Be4 {[%clk 0:00:20]} 28. b4 {[%clk 0:00:59]}  h6 {[%clk 0:00:20]} 29. Bf4 {[%clk 0:00:57]}  Kh7 {[%clk 0:00:21]} 30. Nb5 {[%clk 0:00:53]}  Re7 {[%clk 0:00:10]} 31. Re3 {[%clk 0:00:44]}  Qf6 {[%clk 0:00:05]} 32. Rae1 {[%clk 0:00:38]}  Rae8 {[%clk 0:00:03]} 33. Nd6 {[%clk 0:00:31]}  Rf8 {[%clk 0:00:04]} 34. Nxe4 {[%clk 0:00:24]}  fxe4 {[%clk 0:00:04]} 35. Rxe4 {[%clk 0:00:25]}  Rxe4 {[%clk 0:00:04]} 36. Rxe4 {[%clk 0:00:26]}  g5 {[%clk 0:00:03]} 37. hxg5 {[%clk 0:00:25]}  hxg5 {[%clk 0:00:04]} 38. Bg3 {[%clk 0:00:26]}  Qg6 {[%clk 0:00:04]} 39. Qe2 {[%clk 0:00:24]}  Qf5 {[%clk 0:00:04]} 40. Re7 {[%clk 0:00:22]}  b5 {[%clk 0:00:04]} 41. Be5 {[%clk 0:00:18]}  Rg8 {[%clk 0:00:04]} 42. Qh5# {[%clk 0:00:18]} 1-0


[Site "https://www.chess.com"]

[Event "Titled Tuesday Blitz November 15 Early 2022"]
[White "Kiseljova, Marya"]
[Black "Petrova, Irina"]
[WhiteFideId "4155009"]
[BlackFideId "14124122"]
[WhiteElo "1907"]
[BlackElo "2023"]
[Result "0-1"]
[Round "07"]
[TimeControl "180+1"]
[Date "2022.11.16"]
[WhiteClock "0:00:01"]
[BlackClock "0:00:07"]

1. d4 {[%clk 0:03:00]}  d6 {[%clk 0:03:00]} 2. e4 {[%clk 0:02:56]}  Nf6 {[%clk 0:03:00]} 3. Nc3 {[%clk 0:02:55]}  e5 {[%clk 0:03:00]} 4. Nf3 {[%clk 0:02:51]}  Nbd7 {[%clk 0:02:59]} 5. Be2 {[%clk 0:02:49]}  Be7 {[%clk 0:02:59]} 6. O-O {[%clk 0:02:48]}  c6 {[%clk 0:02:59]} 7. Bg5 {[%clk 0:02:44]}  h6 {[%clk 0:02:59]} 8. Be3 {[%clk 0:02:38]}  Qc7 {[%clk 0:02:56]} 9. h3 {[%clk 0:02:38]}  g5 {[%clk 0:02:55]} 10. dxe5 {[%clk 0:02:17]}  dxe5 {[%clk 0:02:56]} 11. a4 {[%clk 0:02:08]}  Nf8 {[%clk 0:02:53]} 12. Bc4 {[%clk 0:01:58]}  Be6 {[%clk 0:02:52]} 13. Qe2 {[%clk 0:01:55]}  g4 {[%clk 0:02:27]} 14. Nh4 {[%clk 0:01:27]}  gxh3 {[%clk 0:02:19]} 15. g3 {[%clk 0:01:26]}  h2+ {[%clk 0:02:14]} 16. Kxh2 {[%clk 0:01:25]}  Ng4+ {[%clk 0:02:12]} 17. Kg2 {[%clk 0:01:24]}  Bxh4 {[%clk 0:02:06]} 18. Bxe6 {[%clk 0:01:21]}  Nxe3+ {[%clk 0:02:06]} 19. fxe3 {[%clk 0:01:18]}  Nxe6 {[%clk 0:02:05]} 20. gxh4 {[%clk 0:01:16]}  Rg8+ {[%clk 0:02:02]} 21. Kh2 {[%clk 0:01:15]}  Qe7 {[%clk 0:02:02]} 22. Qh5 {[%clk 0:01:12]}  O-O-O {[%clk 0:01:39]} 23. Rxf7 {[%clk 0:01:09]}  Rd2+ {[%clk 0:01:39]} 24. Kh1 {[%clk 0:01:05]}  Qc5 {[%clk 0:01:16]} 25. Qf5 {[%clk 0:00:34]}  Qxe3 {[%clk 0:00:47]} 26. Qxe6+ {[%clk 0:00:34]}  Kb8 {[%clk 0:00:47]} 27. Raf1 {[%clk 0:00:19]}  a6 {[%clk 0:00:29]} 28. Qxe5+ {[%clk 0:00:11]}  Ka7 {[%clk 0:00:28]} 29. R7f3 {[%clk 0:00:09]}  Qb6 {[%clk 0:00:16]} 30. a5 {[%clk 0:00:09]}  Qd8 {[%clk 0:00:14]} 31. Qc5+ {[%clk 0:00:08]}  Ka8 {[%clk 0:00:11]} 32. Qh5 {[%clk 0:00:07]}  Ka7 {[%clk 0:00:09]} 33. Qc5+ {[%clk 0:00:07]}  Ka8 {[%clk 0:00:09]} 34. Qh5 {[%clk 0:00:07]}  Qd4 {[%clk 0:00:09]} 35. Rf8+ {[%clk 0:00:03]}  Rxf8 {[%clk 0:00:10]} 36. Rxf8+ {[%clk 0:00:03]}  Ka7 {[%clk 0:00:10]} 37. Qf3 {[%clk 0:00:03]}  Rxc2 {[%clk 0:00:09]} 38. Rf7 {[%clk 0:00:01]}  Rxb2 {[%clk 0:00:07]} 0-1


[Site "https://www.chess.com"]

[Event "Titled Tuesday Blitz November 15 Early 2022"]
[White "Kleiman, Jake"]
[Black "Chernomordik, Pavel"]
[WhiteFideId "2020041"]
[BlackFideId "2804530"]
[WhiteElo "2600"]
[BlackElo "2192"]
[Result "1-0"]
[Round "07"]
[TimeControl "180+1"]
[Date "2022.11.16"]
[WhiteClock "0:00:22"]
[BlackClock "0:00:07"]

1. e4 {[%clk 0:03:00]}  g6 {[%clk 0:02:55]} 2. d4 {[%clk 0:03:00]}  Bg7 {[%clk 0:02:56]} 3. Nc3 {[%clk 0:03:01]}  d6 {[%clk 0:02:56]} 4. Nf3 {[%clk 0:03:01]}  a6 {[%clk 0:02:56]} 5. a4 {[%clk 0:03:01]}  b6 {[%clk 0:02:56]} 6. Be3 {[%clk 0:02:58]}  Bb7 {[%clk 0:02:56]} 7. Bd3 {[%clk 0:02:57]}  Nd7 {[%clk 0:02:56]} 8. O-O {[%clk 0:02:58]}  e6 {[%clk 0:02:55]} 9. Ne2 {[%clk 0:02:57]}  Ngf6 {[%clk 0:02:51]} 10. Ng3 {[%clk 0:02:57]}  O-O {[%clk 0:02:51]} 11. h3 {[%clk 0:02:57]}  c5 {[%clk 0:02:49]} 12. c3 {[%clk 0:02:57]}  Qc7 {[%clk 0:02:45]} 13. Re1 {[%clk 0:02:57]}  Rfd8 {[%clk 0:02:41]} 14. Rc1 {[%clk 0:02:57]}  Bc6 {[%clk 0:02:37]} 15. b3 {[%clk 0:02:45]}  Qb7 {[%clk 0:02:36]} 16. Bf4 {[%clk 0:02:35]}  Ne8 {[%clk 0:02:19]} 17. Bg5 {[%clk 0:02:30]}  f6 {[%clk 0:02:15]} 18. Be3 {[%clk 0:02:29]}  Nf8 {[%clk 0:02:09]} 19. Qe2 {[%clk 0:02:22]}  b5 {[%clk 0:02:07]} 20. axb5 {[%clk 0:02:20]}  axb5 {[%clk 0:02:06]} 21. dxc5 {[%clk 0:02:20]}  dxc5 {[%clk 0:01:59]} 22. Bxc5 {[%clk 0:02:20]}  e5 {[%clk 0:01:52]} 23. c4 {[%clk 0:02:09]}  Nc7 {[%clk 0:01:44]} 24. cxb5 {[%clk 0:02:05]}  Nxb5 {[%clk 0:01:40]} 25. Bxf8 {[%clk 0:01:59]}  Bxf8 {[%clk 0:01:12]} 26. Rxc6 {[%clk 0:01:56]}  Rxd3 {[%clk 0:01:05]} 27. Rxf6 {[%clk 0:01:51]}  Rad8 {[%clk 0:00:59]} 28. Nxe5 {[%clk 0:01:50]}  Nc3 {[%clk 0:00:55]} 29. Qxd3 {[%clk 0:01:37]}  Rxd3 {[%clk 0:00:54]} 30. Nxd3 {[%clk 0:01:38]}  Qxb3 {[%clk 0:00:50]} 31. Rf3 {[%clk 0:01:11]}  Qb6 {[%clk 0:00:42]} 32. Nf4 {[%clk 0:01:02]}  Bb4 {[%clk 0:00:36]} 33. e5 {[%clk 0:00:48]}  g5 {[%clk 0:00:24]} 34. Nfh5 {[%clk 0:00:43]}  Nd5 {[%clk 0:00:24]} 35. Rd1 {[%clk 0:00:38]}  Nf4 {[%clk 0:00:20]} 36. Nxf4 {[%clk 0:00:33]}  gxf4 {[%clk 0:00:20]} 37. Rxf4 {[%clk 0:00:34]}  Be7 {[%clk 0:00:15]} 38. Nf5 {[%clk 0:00:28]}  Bf8 {[%clk 0:00:11]} 39. Ne3 {[%clk 0:00:24]}  Qb3 {[%clk 0:00:07]} 40. Rd8 {[%clk 0:00:22]} 1-0


[Site "https://www.chess.com"]

[Event "Titled Tuesday Blitz November 15 Early 2022"]
[White "Kobo, Ori"]
[Black "Oro, Faustino"]
[WhiteFideId "2812320"]
[BlackFideId "20000197"]
[WhiteElo "2447"]
[BlackElo "2066"]
[Result "0-1"]
[Round "07"]
[TimeControl "180+1"]
[Date "2022.11.16"]
[WhiteClock "0:00:07"]
[BlackClock "0:00:15"]

1. e4 {[%clk 0:03:00]}  e5 {[%clk 0:02:57]} 2. a3 {[%clk 0:03:00]}  Nf6 {[%clk 0:02:55]} 3. Nc3 {[%clk 0:03:01]}  Nc6 {[%clk 0:02:49]} 4. d3 {[%clk 0:03:01]}  d6 {[%clk 0:02:46]} 5. f4 {[%clk 0:03:00]}  Be7 {[%clk 0:02:33]} 6. Nf3 {[%clk 0:03:00]}  O-O {[%clk 0:02:32]} 7. Be2 {[%clk 0:02:50]}  Bg4 {[%clk 0:02:20]} 8. O-O {[%clk 0:02:48]}  Bxf3 {[%clk 0:02:18]} 9. Bxf3 {[%clk 0:02:48]}  Nd4 {[%clk 0:02:18]} 10. Be3 {[%clk 0:02:40]}  Nd7 {[%clk 0:02:10]} 11. Nd5 {[%clk 0:02:36]}  c6 {[%clk 0:02:07]} 12. Nxe7+ {[%clk 0:02:36]}  Qxe7 {[%clk 0:02:08]} 13. Bxd4 {[%clk 0:02:25]}  exd4 {[%clk 0:02:07]} 14. Bg4 {[%clk 0:02:25]}  Nf6 {[%clk 0:02:00]} 15. Bh3 {[%clk 0:02:25]}  g6 {[%clk 0:01:56]} 16. Qf3 {[%clk 0:02:24]}  Rae8 {[%clk 0:01:49]} 17. Rae1 {[%clk 0:02:23]}  Qc7 {[%clk 0:01:44]} 18. g4 {[%clk 0:02:16]}  Nd7 {[%clk 0:01:40]} 19. g5 {[%clk 0:02:10]}  f6 {[%clk 0:01:38]} 20. gxf6 {[%clk 0:01:47]}  Rxf6 {[%clk 0:01:35]} 21. Qg3 {[%clk 0:01:43]}  Ref8 {[%clk 0:01:30]} 22. Bg4 {[%clk 0:01:28]}  Qd8 {[%clk 0:01:00]} 23. Kg2 {[%clk 0:01:15]}  Kh8 {[%clk 0:00:58]} 24. Rf3 {[%clk 0:01:06]}  Qe7 {[%clk 0:00:53]} 25. e5 {[%clk 0:00:54]}  dxe5 {[%clk 0:00:52]} 26. fxe5 {[%clk 0:00:55]}  Rxf3 {[%clk 0:00:51]} 27. Bxf3 {[%clk 0:00:56]}  Rf5 {[%clk 0:00:46]} 28. h4 {[%clk 0:00:26]}  Rxe5 {[%clk 0:00:43]} 29. Rf1 {[%clk 0:00:26]}  Nf6 {[%clk 0:00:39]} 30. Qf4 {[%clk 0:00:26]}  c5 {[%clk 0:00:29]} 31. b4 {[%clk 0:00:26]}  b6 {[%clk 0:00:29]} 32. bxc5 {[%clk 0:00:26]}  bxc5 {[%clk 0:00:29]} 33. Rb1 {[%clk 0:00:26]}  Nd5 {[%clk 0:00:19]} 34. Qh6 {[%clk 0:00:16]}  Ne3+ {[%clk 0:00:18]} 35. Kf2 {[%clk 0:00:15]}  Qe8 {[%clk 0:00:14]} 36. Rb7 {[%clk 0:00:14]}  Re7 {[%clk 0:00:15]} 37. Rxe7 {[%clk 0:00:08]}  Qxe7 {[%clk 0:00:15]} 38. c3 {[%clk 0:00:07]}  Nf5 {[%clk 0:00:14]} 39. Qf4 {[%clk 0:00:04]}  Qxh4+ {[%clk 0:00:13]} 40. Qxh4 {[%clk 0:00:04]}  Nxh4 {[%clk 0:00:14]} 41. cxd4 {[%clk 0:00:04]}  Nxf3 {[%clk 0:00:13]} 42. Kxf3 {[%clk 0:00:03]}  cxd4 {[%clk 0:00:14]} 43. Ke4 {[%clk 0:00:04]}  Kg7 {[%clk 0:00:14]} 44. Kxd4 {[%clk 0:00:05]}  Kf6 {[%clk 0:00:14]} 45. Kd5 {[%clk 0:00:05]}  h5 {[%clk 0:00:13]} 46. Kd6 {[%clk 0:00:05]}  h4 {[%clk 0:00:13]} 47. d4 {[%clk 0:00:06]}  h3 {[%clk 0:00:14]} 48. d5 {[%clk 0:00:06]}  h2 {[%clk 0:00:14]} 49. Kc7 {[%clk 0:00:06]}  h1=Q {[%clk 0:00:15]} 50. d6 {[%clk 0:00:07]}  Qc1+ {[%clk 0:00:15]} 0-1


[Site "https://www.chess.com"]

[Event "Titled Tuesday Blitz November 15 Early 2022"]
[White "Korchmar, Vasiliy"]
[Black "Pajeken, Jakob Leon"]
[WhiteFideId "24131750"]
[BlackFideId "12942839"]
[WhiteElo "2370"]
[BlackElo "2429"]
[Result "0-1"]
[Round "07"]
[TimeControl "180+1"]
[Date "2022.11.16"]
[WhiteClock "0:00:07"]
[BlackClock "0:00:44"]

1. e4 {[%clk 0:03:00]}  e5 {[%clk 0:02:59]} 2. Nf3 {[%clk 0:03:01]}  Nc6 {[%clk 0:03:00]} 3. Bc4 {[%clk 0:03:01]}  Bc5 {[%clk 0:03:00]} 4. c3 {[%clk 0:03:01]}  Nf6 {[%clk 0:03:01]} 5. d3 {[%clk 0:03:01]}  a6 {[%clk 0:03:01]} 6. Bg5 {[%clk 0:02:57]}  h6 {[%clk 0:03:00]} 7. Bh4 {[%clk 0:02:57]}  Be7 {[%clk 0:03:00]} 8. Nbd2 {[%clk 0:02:54]}  d6 {[%clk 0:02:54]} 9. O-O {[%clk 0:02:52]}  Bg4 {[%clk 0:02:46]} 10. h3 {[%clk 0:02:41]}  Bh5 {[%clk 0:02:45]} 11. Re1 {[%clk 0:02:33]}  Qd7 {[%clk 0:02:42]} 12. b4 {[%clk 0:02:27]}  O-O {[%clk 0:02:37]} 13. a4 {[%clk 0:02:26]}  Rae8 {[%clk 0:02:20]} 14. Nf1 {[%clk 0:02:20]}  Nxe4 {[%clk 0:01:58]} 15. Bxe7 {[%clk 0:02:03]}  Nxc3 {[%clk 0:01:46]} 16. Qc2 {[%clk 0:02:00]}  Rxe7 {[%clk 0:01:37]} 17. Qxc3 {[%clk 0:01:58]}  Bxf3 {[%clk 0:01:37]} 18. gxf3 {[%clk 0:01:59]}  Qxh3 {[%clk 0:01:36]} 19. d4 {[%clk 0:01:21]}  exd4 {[%clk 0:01:30]} 20. Qb3 {[%clk 0:01:11]}  Ne5 {[%clk 0:01:25]} 21. Ng3 {[%clk 0:01:07]}  d3 {[%clk 0:01:18]} 22. Re3 {[%clk 0:01:03]}  Rfe8 {[%clk 0:01:08]} 23. Bxd3 {[%clk 0:00:42]}  Ng4 {[%clk 0:00:56]} 24. fxg4 {[%clk 0:00:35]}  Rxe3 {[%clk 0:00:56]} 25. Qd5 {[%clk 0:00:16]}  Rxg3+ {[%clk 0:00:50]} 26. fxg3 {[%clk 0:00:16]}  Qxg3+ {[%clk 0:00:51]} 27. Kh1 {[%clk 0:00:13]}  Qh3+ {[%clk 0:00:48]} 28. Kg1 {[%clk 0:00:13]}  Qxg4+ {[%clk 0:00:48]} 29. Kh1 {[%clk 0:00:10]}  Re5 {[%clk 0:00:46]} 30. Qg2 {[%clk 0:00:07]}  Rh5+ {[%clk 0:00:43]} 31. Kg1 {[%clk 0:00:07]}  Qd4+ {[%clk 0:00:44]} 0-1


[Site "https://www.chess.com"]

[Event "Titled Tuesday Blitz November 15 Early 2022"]
[White "Kouskoutis, Georgios-Alexandros"]
[Black "Quintiliano Pinto, Renato R."]
[WhiteFideId "4234049"]
[BlackFideId "2117568"]
[WhiteElo "2187"]
[BlackElo "2472"]
[Result "1/2-1/2"]
[Round "07"]
[TimeControl "180+1"]
[Date "2022.11.16"]
[WhiteClock "0:00:04"]
[BlackClock "0:01:05"]

1. Nf3 {[%clk 0:03:00]}  Nf6 {[%clk 0:02:59]} 2. g3 {[%clk 0:03:01]}  c5 {[%clk 0:02:59]} 3. Bg2 {[%clk 0:03:01]}  Nc6 {[%clk 0:02:59]} 4. O-O {[%clk 0:03:00]}  d5 {[%clk 0:02:59]} 5. d4 {[%clk 0:02:57]}  cxd4 {[%clk 0:02:58]} 6. Nxd4 {[%clk 0:02:58]}  e5 {[%clk 0:02:57]} 7. Nxc6 {[%clk 0:02:55]}  bxc6 {[%clk 0:02:58]} 8. c4 {[%clk 0:02:52]}  Be6 {[%clk 0:02:58]} 9. Qa4 {[%clk 0:02:32]}  Qd7 {[%clk 0:02:57]} 10. cxd5 {[%clk 0:02:30]}  cxd5 {[%clk 0:02:58]} 11. Qxd7+ {[%clk 0:02:30]}  Kxd7 {[%clk 0:02:59]} 12. Rd1 {[%clk 0:02:01]}  Bc5 {[%clk 0:02:01]} 13. Nc3 {[%clk 0:01:49]}  Rac8 {[%clk 0:01:51]} 14. Nxd5 {[%clk 0:01:24]}  Nxd5 {[%clk 0:01:49]} 15. Bxd5 {[%clk 0:01:14]}  Bxd5 {[%clk 0:01:50]} 16. Rxd5+ {[%clk 0:01:14]}  Ke6 {[%clk 0:01:50]} 17. Rd1 {[%clk 0:01:04]}  Rhd8 {[%clk 0:01:47]} 18. Bd2 {[%clk 0:00:48]}  Bd4 {[%clk 0:01:46]} 19. Ba5 {[%clk 0:00:17]}  Rd5 {[%clk 0:01:41]} 20. Bc3 {[%clk 0:00:06]}  Bxc3 {[%clk 0:01:41]} 21. Rxd5 {[%clk 0:00:07]}  Kxd5 {[%clk 0:01:35]} 22. Rc1 {[%clk 0:00:06]}  Rb8 {[%clk 0:01:32]} 23. Rxc3 {[%clk 0:00:06]}  Rxb2 {[%clk 0:01:30]} 24. Rc7 {[%clk 0:00:07]}  Rxa2 {[%clk 0:01:28]} 25. Rxf7 {[%clk 0:00:06]}  a5 {[%clk 0:01:29]} 26. Rxg7 {[%clk 0:00:06]}  h5 {[%clk 0:01:29]} 27. e3 {[%clk 0:00:03]}  a4 {[%clk 0:01:25]} 28. Ra7 {[%clk 0:00:03]}  Ke4 {[%clk 0:01:25]} 29. Kg2 {[%clk 0:00:03]}  a3 {[%clk 0:01:23]} 30. h3 {[%clk 0:00:03]}  Kf5 {[%clk 0:01:23]} 31. Ra4 {[%clk 0:00:02]}  Ra1 {[%clk 0:01:16]} 32. g4+ {[%clk 0:00:01]}  hxg4 {[%clk 0:01:17]} 33. hxg4+ {[%clk 0:00:02]}  Kg5 {[%clk 0:01:17]} 34. Kf3 {[%clk 0:00:03]}  a2 {[%clk 0:01:12]} 35. Ra5 {[%clk 0:00:03]}  Kh4 {[%clk 0:01:12]} 36. Ke4 {[%clk 0:00:03]}  Kxg4 {[%clk 0:01:10]} 37. Kxe5 {[%clk 0:00:04]}  Kf3 {[%clk 0:01:11]} 38. Kf6 {[%clk 0:00:04]}  Kxf2 {[%clk 0:01:09]} 39. e4 {[%clk 0:00:05]}  Ke3 {[%clk 0:01:09]} 40. e5 {[%clk 0:00:03]}  Rf1+ {[%clk 0:01:09]} 41. Kg7 {[%clk 0:00:02]}  a1=Q {[%clk 0:01:10]} 42. Rxa1 {[%clk 0:00:02]}  Rxa1 {[%clk 0:01:11]} 43. e6 {[%clk 0:00:03]}  Ra7+ {[%clk 0:01:07]} 44. Kf8 {[%clk 0:00:03]}  Ke4 {[%clk 0:01:05]} 45. e7 {[%clk 0:00:03]}  Rxe7 {[%clk 0:01:05]} 46. Kxe7 {[%clk 0:00:04]} 1/2-1/2


[Site "https://www.chess.com"]

[Event "Titled Tuesday Blitz November 15 Early 2022"]
[White "Kovalev, Vladislav"]
[Black "Janaszak, Dawid"]
[WhiteFideId "13504398"]
[BlackFideId "1119206"]
[WhiteElo "2556"]
[BlackElo "2226"]
[Result "1-0"]
[Round "07"]
[TimeControl "180+1"]
[Date "2022.11.15"]
[WhiteClock "0:00:12"]
[BlackClock "0:00:09"]

1. e4 {[%clk 0:03:00]}  c5 {[%clk 0:02:56]} 2. Be2 {[%clk 0:02:59]}  Nc6 {[%clk 0:02:53]} 3. d3 {[%clk 0:03:00]}  e5 {[%clk 0:02:51]} 4. f4 {[%clk 0:02:59]}  d5 {[%clk 0:02:48]} 5. exd5 {[%clk 0:02:58]}  Qxd5 {[%clk 0:02:48]} 6. Bf3 {[%clk 0:02:58]}  Qd6 {[%clk 0:02:46]} 7. Ne2 {[%clk 0:02:59]}  Nf6 {[%clk 0:02:40]} 8. O-O {[%clk 0:02:58]}  Be7 {[%clk 0:02:29]} 9. Na3 {[%clk 0:02:58]}  Bg4 {[%clk 0:02:02]} 10. Nc4 {[%clk 0:02:54]}  Qe6 {[%clk 0:01:50]} 11. Bxc6+ {[%clk 0:02:37]}  bxc6 {[%clk 0:01:44]} 12. fxe5 {[%clk 0:02:37]}  Nd5 {[%clk 0:01:39]} 13. Qe1 {[%clk 0:02:30]}  O-O {[%clk 0:01:30]} 14. Nf4 {[%clk 0:02:11]}  Qd7 {[%clk 0:01:30]} 15. h3 {[%clk 0:02:04]}  Bf5 {[%clk 0:01:25]} 16. Bd2 {[%clk 0:01:54]}  Rab8 {[%clk 0:01:19]} 17. Qg3 {[%clk 0:01:53]}  Kh8 {[%clk 0:01:14]} 18. Rae1 {[%clk 0:01:52]}  Nxf4 {[%clk 0:01:09]} 19. Bxf4 {[%clk 0:01:42]}  Be6 {[%clk 0:01:09]} 20. b3 {[%clk 0:01:42]}  Rg8 {[%clk 0:00:52]} 21. Bg5 {[%clk 0:01:31]}  Bf8 {[%clk 0:00:42]} 22. Nd6 {[%clk 0:01:18]}  h6 {[%clk 0:00:38]} 23. Be3 {[%clk 0:01:18]}  g5 {[%clk 0:00:23]} 24. Bxc5 {[%clk 0:01:05]}  g4 {[%clk 0:00:23]} 25. h4 {[%clk 0:01:05]}  Be7 {[%clk 0:00:22]} 26. Rf4 {[%clk 0:00:52]}  Rg6 {[%clk 0:00:21]} 27. d4 {[%clk 0:00:48]}  Rf8 {[%clk 0:00:20]} 28. c4 {[%clk 0:00:47]}  Qd8 {[%clk 0:00:20]} 29. Nb7 {[%clk 0:00:20]}  Bxh4 {[%clk 0:00:17]} 30. Nxd8 {[%clk 0:00:20]}  Bxg3 {[%clk 0:00:18]} 31. Nxe6 {[%clk 0:00:20]}  Rxe6 {[%clk 0:00:18]} 32. Rxg4 {[%clk 0:00:16]}  Bxe1 {[%clk 0:00:15]} 33. Bxf8 {[%clk 0:00:16]}  h5 {[%clk 0:00:14]} 34. Rg5 {[%clk 0:00:11]}  c5 {[%clk 0:00:13]} 35. Rxh5+ {[%clk 0:00:11]}  Kg8 {[%clk 0:00:12]} 36. Bxc5 {[%clk 0:00:11]}  Rg6 {[%clk 0:00:10]} 37. Kf1 {[%clk 0:00:11]}  Bc3 {[%clk 0:00:10]} 38. Rf5 {[%clk 0:00:11]}  Rg3 {[%clk 0:00:09]} 39. Rf3 {[%clk 0:00:12]} 1-0


[Site "https://www.chess.com"]

[Event "Titled Tuesday Blitz November 15 Early 2022"]
[White "Langner, Ladislav"]
[Black "Raahul V S"]
[WhiteFideId "300403"]
[BlackFideId "25035525"]
[WhiteElo "2346"]
[BlackElo "2233"]
[Result "0-1"]
[Round "07"]
[TimeControl "180+1"]
[Date "2022.11.16"]
[WhiteClock "0:00:02"]
[BlackClock "0:00:38"]

1. e4 {[%clk 0:03:00]}  e6 {[%clk 0:02:52]} 2. d4 {[%clk 0:03:00]}  d5 {[%clk 0:02:49]} 3. e5 {[%clk 0:03:01]}  c5 {[%clk 0:02:49]} 4. c3 {[%clk 0:03:02]}  Nc6 {[%clk 0:02:45]} 5. Nf3 {[%clk 0:03:02]}  Qb6 {[%clk 0:02:46]} 6. a3 {[%clk 0:03:02]}  a5 {[%clk 0:02:45]} 7. b3 {[%clk 0:02:57]}  Bd7 {[%clk 0:02:37]} 8. Bb2 {[%clk 0:02:52]}  c4 {[%clk 0:02:20]} 9. b4 {[%clk 0:02:45]}  axb4 {[%clk 0:01:47]} 10. axb4 {[%clk 0:02:46]}  Rxa1 {[%clk 0:01:44]} 11. Bxa1 {[%clk 0:02:46]}  Qa6 {[%clk 0:01:39]} 12. Nbd2 {[%clk 0:02:26]}  Bxb4 {[%clk 0:01:25]} 13. cxb4 {[%clk 0:01:44]}  Nxb4 {[%clk 0:01:26]} 14. Bc3 {[%clk 0:01:09]}  Na2 {[%clk 0:01:25]} 15. Qa1 {[%clk 0:01:02]}  b5 {[%clk 0:01:24]} 16. Be2 {[%clk 0:00:33]}  b4 {[%clk 0:01:15]} 17. Bb2 {[%clk 0:00:33]}  Ne7 {[%clk 0:01:11]} 18. O-O {[%clk 0:00:31]}  Qa4 {[%clk 0:01:05]} 19. Bd1 {[%clk 0:00:29]}  Qa6 {[%clk 0:01:00]} 20. Bc2 {[%clk 0:00:20]}  O-O {[%clk 0:00:59]} 21. Bb1 {[%clk 0:00:18]}  Ra8 {[%clk 0:00:59]} 22. Bxa2 {[%clk 0:00:12]}  Qxa2 {[%clk 0:00:59]} 23. Rc1 {[%clk 0:00:07]}  h6 {[%clk 0:00:51]} 24. Ne1 {[%clk 0:00:05]}  c3 {[%clk 0:00:38]} 25. Bxc3 {[%clk 0:00:04]}  bxc3 {[%clk 0:00:39]} 26. Qxc3 {[%clk 0:00:03]}  Rc8 {[%clk 0:00:39]} 27. Qa1 {[%clk 0:00:02]}  Qxd2 {[%clk 0:00:38]} 0-1


[Site "https://www.chess.com"]

[Event "Titled Tuesday Blitz November 15 Early 2022"]
[White "Lehtosaari, Mauri"]
[Black "Pg, Mohd Omar Ak Hira"]
[WhiteFideId "501999"]
[BlackFideId "10500103"]
[WhiteElo "2489"]
[BlackElo "2184"]
[Result "1-0"]
[Round "07"]
[TimeControl "180+1"]
[Date "2022.11.16"]
[WhiteClock "0:01:05"]
[BlackClock "0:01:37"]

1. d4 {[%clk 0:03:00]}  Nf6 {[%clk 0:02:59]} 2. Nf3 {[%clk 0:03:01]}  g6 {[%clk 0:02:58]} 3. Bg5 {[%clk 0:03:01]}  Bg7 {[%clk 0:02:57]} 4. Nbd2 {[%clk 0:03:02]}  d5 {[%clk 0:02:56]} 5. e3 {[%clk 0:03:02]}  O-O {[%clk 0:02:56]} 6. Be2 {[%clk 0:03:03]}  Nbd7 {[%clk 0:02:53]} 7. O-O {[%clk 0:03:03]}  c5 {[%clk 0:02:52]} 8. c3 {[%clk 0:03:02]}  b6 {[%clk 0:02:52]} 9. b4 {[%clk 0:03:02]}  Bb7 {[%clk 0:02:47]} 10. a4 {[%clk 0:02:54]}  Re8 {[%clk 0:02:46]} 11. a5 {[%clk 0:02:48]}  c4 {[%clk 0:02:46]} 12. h3 {[%clk 0:02:30]}  e5 {[%clk 0:02:31]} 13. dxe5 {[%clk 0:02:25]}  Nxe5 {[%clk 0:02:31]} 14. a6 {[%clk 0:02:03]}  Bc6 {[%clk 0:02:29]} 15. Nd4 {[%clk 0:02:03]}  Bd7 {[%clk 0:02:12]} 16. N2f3 {[%clk 0:01:58]}  Qc7 {[%clk 0:02:06]} 17. Bf4 {[%clk 0:01:46]}  Nh5 {[%clk 0:02:06]} 18. Nxe5 {[%clk 0:01:36]}  Nxf4 {[%clk 0:02:04]} 19. exf4 {[%clk 0:01:35]}  Bxe5 {[%clk 0:01:53]} 20. fxe5 {[%clk 0:01:35]}  Qxe5 {[%clk 0:01:53]} 21. Bg4 {[%clk 0:01:33]}  f5 {[%clk 0:01:52]} 22. Bf3 {[%clk 0:01:32]}  h5 {[%clk 0:01:52]} 23. Qd2 {[%clk 0:01:28]}  f4 {[%clk 0:01:52]} 24. Rfe1 {[%clk 0:01:25]}  Qg5 {[%clk 0:01:52]} 25. Kh2 {[%clk 0:01:14]}  Qf6 {[%clk 0:01:46]} 26. Rxe8+ {[%clk 0:01:12]}  Rxe8 {[%clk 0:01:45]} 27. Bxd5+ {[%clk 0:01:11]}  Kh7 {[%clk 0:01:44]} 28. Re1 {[%clk 0:01:11]}  Rf8 {[%clk 0:01:38]} 29. Qe2 {[%clk 0:01:08]}  Kh6 {[%clk 0:01:37]} 30. Qe7 {[%clk 0:01:05]} 1-0


[Site "https://www.chess.com"]